bitfinex/quotes_ETHUSD_20250123
["timestamp","ask_amount","ask_price","bid_price","bid_amount"]
[1737645551016,3.09661,3229.4,3229.0,0.41666667]
[1737645551336,3.09673,3229.3,3229.0,0.41666667]
[1737645551552,4.06543,3229.7,3229.0,0.41666667]
[1737645551707,3.09657,3229.4,3229.0,0.41666667]
[1737645551908,0.9691,3229.7,3229.0,0.41666667]
[1737645551909,3.09683,3229.1,3229.0,0.41666667]
[1737645552212,0.9691,3229.7,3229.0,0.41666667]
[1737645552213,3.09647,3229.5,3229.0,0.41666667]
[1737645552414,0.9773,3230.3,3229.0,0.41666667]
[1737645552629,3.09559,3230.4,3229.7,3.09623]
[1737645552852,0.9773,3230.8,3229.4,3.09655]
[1737645553027,3.09557,3230.5,3229.3,0.5317]
[1737645553227,3.09591,3230.1,3229.3,3.62832]
[1737645553432,0.9773,3230.8,3229.3,0.5317]
[1737645553808,3.09556,3230.5,3229.7,3.09619]
[1737645554012,0.9773,3230.8,3229.5,3.09644]
[1737645554326,3.09482,3231.2,3230.4,3.09558]
[1737645554528,3.09482,3231.2,3230.4,0.5317]
[1737645554713,3.09453,3231.5,3230.1,0.61914997]
[1737645555045,3.09453,3231.5,3229.9,0.5317]
[1737645555046,3.09599,3230.0,3229.6,0.60985807]
[1737645555198,3.09587,3230.2,3229.3,3.09663]
[1737645555401,3.09587,3230.2,3229.4,3.09651]
[1737645555637,3.09597,3230.0,3229.4,3.09651]
[1737645555838,3.09561,3230.4,3229.6,3.09632]
[1737645556056,1.0065,3231.2,3229.2,3.09671]
[1737645556203,3.09638,3229.6,3229.1,0.5317]
[1737645556843,3.09661,3229.4,3229.0,0.41666667]
[1737645557007,3.0964,3229.6,3229.0,0.41666667]
[1737645557209,3.09652,3229.5,3229.0,0.41666667]
[1737645557552,3.09683,3229.1,3229.0,0.41666667]
[1737645558523,3.09683,3229.1,3229.0,6.67e-06]
[1737645558730,6.09683,3229.1,3229.0,6.67e-06]
[1737645559623,3.09683,3229.1,3229.0,6.67e-06]
[1737645559946,3.09668,3229.3,3229.0,6.67e-06]
[1737645560150,3.09669,3229.3,3229.0,6.67e-06]
[1737645560355,3.09614,3229.9,3229.2,3.0967]
[1737645560537,3.09492,3231.1,3229.0,3.09690667]
[1737645560538,0.62807018,3231.4,3229.0,6.67e-06]
[1737645560737,3.09523,3230.8,3229.8,0.5122]
[1737645560943,3.09453,3231.5,3230.7,3.09529]
[1737645561257,0.99,3231.6,3230.2,3.09576]
[1737645561459,3.0947,3231.4,3229.9,0.55]
[1737645561764,0.9848,3232.0,3230.8,3.09515]
[1737645561970,0.9848,3232.0,3230.2,3.09569]
[1737645562263,0.9848,3232.0,3229.1,3.09681]
[1737645562264,3.09569,3230.3,3229.7,0.6096031]
[1737645562466,3.09569,3230.3,3229.6,0.5122]
[1737645562467,3.09588,3230.1,3229.6,0.5122]
[1737645562669,3.09573,3230.3,3229.6,0.5122]
[1737645562870,3.09546,3230.6,3229.2,0.5122]
[1737645563173,1.0188,3231.0,3229.2,0.5122]
[1737645563174,3.0953,3230.7,3229.2,0.5122]
[1737645563326,3.09629,3229.7,3229.2,0.5122]
[1737645563840,3.09607,3230.0,3229.2,3.60894]
[1737645564174,3.09633,3229.7,3229.2,0.5122]
[1737645564662,3.09615,3229.9,3229.2,0.5122]
[1737645564863,3.09615,3229.9,3229.2,3.60894]
[1737645565163,3.09652,3229.5,3229.2,0.5122]
[1737645565365,1.0188,3230.0,3229.0,6.67e-06]
[1737645565522,3.09683,3229.1,3229.0,6.67e-06]
[1737645565729,3.09669,3229.3,3229.0,6.67e-06]
[1737645565927,3.0962,3229.8,3229.0,6.67e-06]
[1737645566263,3.09628,3229.7,3229.0,6.67e-06]
[1737645566467,3.09589,3230.1,3229.0,6.67e-06]
[1737645566765,1.0188,3230.5,3229.0,6.67e-06]
[1737645566766,3.0957,3230.3,3229.5,3.09637]
[1737645566973,1.0188,3231.0,3229.7,0.5122]
[1737645567265,1.0188,3231.0,3229.1,0.5122]
[1737645567266,3.09628,3229.7,3229.1,0.5122]
[1737645567465,3.09583,3230.2,3229.2,3.09674]
[1737645567781,3.09597,3230.0,3229.2,3.09674]
[1737645568066,1.0188,3231.0,3229.1,0.5122]
[1737645568368,3.09567,3230.4,3229.5,3.09642]
[1737645568538,3.09567,3230.4,3229.1,0.5122]
[1737645568739,3.0952,3230.8,3229.1,0.5122]
[1737645569062,3.09666,3229.3,3229.0,6.67e-06]
[1737645569447,3.09646,3229.5,3229.0,6.67e-06]
[1737645569985,3.09589,3230.1,3229.0,3.09692667]
[1737645570283,3.09646,3229.5,3229.0,6.67e-06]
[1737645570698,3.09628,3229.7,3229.0,3.09690667]
[1737645570852,3.09609,3229.9,3229.1,3.0968]
[1737645571050,3.09594,3230.1,3229.1,3.09675]
[1737645571463,3.09594,3230.1,3229.3,3.09659]
[1737645571668,3.09618,3229.8,3229.1,3.09675]
[1737645571865,3.0,3230.4,3229.0,6.67e-06]
[1737645572165,3.09683,3229.1,3229.0,6.67e-06]
[1737645572579,3.09666,3229.3,3229.0,6.67e-06]
[1737645572885,3.09645,3229.5,3229.0,6.67e-06]
[1737645573085,3.0964,3229.6,3229.1,0.5122]
[1737645573249,3.09654,3229.5,3229.1,0.5122]
[1737645573450,3.09627,3229.7,3229.1,0.5122]
[1737645573669,3.0961,3229.9,3229.1,0.5122]
[1737645573871,3.09599,3230.0,3229.1,0.5122]
[1737645574231,1.04341338,3231.6,3229.1,0.5122]
[1737645574232,3.09524,3230.8,3229.1,0.5122]
[1737645574389,0.60734812,3230.8,3230.2,3.09569]
[1737645574554,0.60734812,3230.8,3230.1,0.5122]
[1737645574759,3.09425,3231.8,3230.6,3.09537]
[1737645574965,3.09453,3231.6,3230.6,3.09537]
[1737645575168,3.09436,3231.7,3230.6,3.09537]
[1737645575465,3.09436,3231.7,3229.6,3.97723394]
[1737645575466,3.09518,3230.9,3230.5,0.5122]
[1737645575652,3.09508,3231.0,3230.5,0.5122]
[1737645575992,3.09472,3231.3,3229.8,0.5122]
[1737645576149,0.9881,3231.4,3229.8,0.5122]
[1737645576350,3.09588,3230.1,3229.0,6.67e-06]
[1737645576653,3.09664,3229.3,3229.0,6.67e-06]
[1737645576891,3.09683,3229.1,3229.0,6.67e-06]
[1737645578212,6.09683,3229.1,3229.0,6.67e-06]
[1737645581191,4.11649,3228.1,3228.0,0.13494976]
[1737645581404,4.11649,3228.1,3226.8,0.5122]
[1737645581405,3.09872,3227.2,3226.8,0.5122]
[1737645582176,3.0,3228.0,3226.8,0.5122]
[1737645582379,3.09879,3227.1,3226.4,0.165689]
[1737645582796,3.09896,3226.9,3226.4,0.165689]
[1737645582991,3.09879,3227.1,3226.4,0.165689]
[1737645583231,0.62432809,3227.5,3226.4,0.165689]
[1737645583377,3.0982,3227.7,3226.7,3.0991]
[1737645583719,3.09789,3228.0,3227.1,0.5122]
[1737645583917,0.63331256,3228.1,3227.1,0.5122]
[1737645583918,3.09848,3227.4,3227.1,0.5122]
[1737645584070,3.09866,3227.2,3226.5,0.5122]
[1737645584274,0.9503,3227.9,3226.5,0.5122]
[1737645584476,3.9503,3227.9,3226.5,0.5122]
[1737645584704,3.09908,3226.8,3226.5,0.5122]
[1737645584908,3.09895,3226.9,3226.5,0.5122]
[1737645585395,3.09749,3228.5,3227.5,0.411]
[1737645585589,3.09732,3228.6,3227.5,0.411]
[1737645585812,3.09704,3228.9,3227.6,3.09827]
[1737645585813,0.62538144,3228.7,3227.6,3.09827]
[1737645586017,3.09743,3228.5,3227.5,0.411]
[1737645586198,3.72260144,3228.7,3227.5,0.411]
[1737645586199,3.72260144,3228.7,3227.7,3.09809]
[1737645586522,3.09733,3228.6,3227.6,3.09824]
[1737645587026,0.62538144,3228.7,3227.6,3.09819]
[1737645587174,3.09729,3228.7,3227.6,3.09819]
[1737645587378,3.09705,3228.9,3227.6,3.09819]
[1737645587597,3.09705,3228.9,3227.7,3.09815]
[1737645587791,3.09724,3228.7,3227.8,3.09805]
[1737645588203,3.09658,3229.4,3228.2,3.0977]
[1737645588404,0.61224552,3229.3,3228.3,3.09756]
[1737645588604,0.61224552,3229.3,3228.1,0.411]
[1737645588804,3.09674,3229.2,3228.1,0.411]
[1737645588992,3.09714,3228.8,3228.1,0.411]
[1737645589336,3.70890552,3229.3,3228.1,3.50877]
[1737645589518,3.70890552,3229.3,3228.1,0.411]
[1737645589519,3.09704,3228.9,3228.1,0.411]
[1737645589849,3.09706,3228.9,3228.1,0.411]
[1737645590060,3.09685,3229.1,3228.1,0.411]
[1737645590238,4.0097,3230.0,3228.5,3.09739]
[1737645590422,0.60777296,3229.8,3229.2,0.411]
[1737645590624,3.09501,3231.0,3229.3,3.09664]
[1737645590873,0.61904982,3230.7,3230.4,3.09555]
[1737645591077,0.5,3230.8,3230.4,0.411]
[1737645591365,3.09425,3231.8,3230.8,3.09516]
[1737645591524,0.62326315,3232.3,3230.5,0.5]
[1737645591726,3.09396,3232.1,3231.2,0.411]
[1737645591926,0.62326315,3232.3,3231.2,0.411]
[1737645592127,3.09458,3231.5,3231.2,0.411]
[1737645592324,3.09386,3232.2,3230.7,0.411]
[1737645592325,3.09472,3231.3,3230.7,0.411]
[1737645592523,3.09453,3231.5,3230.2,0.411]
[1737645592743,0.9942,3231.4,3230.2,0.411]
[1737645592959,3.09585,3230.2,3229.4,0.411]
[1737645593156,3.09495,3231.1,3229.4,0.411]
[1737645593363,0.62450236,3230.9,3229.9,0.411]
[1737645593546,0.9942,3231.9,3230.0,3.09596]
[1737645593874,3.09492,3231.2,3230.2,3.09571]
[1737645594077,0.6195455,3231.4,3230.0,3.09597]
[1737645594374,0.6195455,3231.4,3229.9,0.411]
[1737645594375,3.09468,3231.4,3229.9,0.411]
[1737645594579,3.09468,3231.4,3230.6,0.411]
[1737645594782,3.09446,3231.6,3230.6,3.50632]
[1737645594932,3.09425,3231.8,3230.7,3.0953]
[1737645595133,0.61378315,3231.9,3230.6,0.411]
[1737645595378,3.09452,3231.6,3230.6,3.50631]
[1737645595584,0.61378315,3231.9,3230.6,0.411]
[1737645595753,3.095,3231.1,3230.6,0.411]
[1737645595955,3.09495,3231.1,3230.6,0.411]
[1737645596175,3.0953,3230.7,3230.6,0.411]
[1737645596334,6.18888,3231.6,3228.8,0.15332065]
[1737645596335,0.41591539,3231.4,3230.2,0.411]
[1737645596536,3.09453,3231.5,3230.2,0.411]
[1737645596741,3.09514,3230.9,3230.2,0.411]
[1737645596982,3.09492,3231.1,3230.2,0.411]
[1737645597206,3.09492,3231.1,3230.2,3.50669]
[1737645597683,3.09473,3231.3,3230.2,3.50669]
[1737645598168,3.09473,3231.3,3230.4,3.09552]
[1737645598375,3.09357,3232.6,3229.7,3.09624]
[1737645598376,3.09386,3232.2,3230.8,0.1614]
[1737645598572,3.09511,3230.9,3230.8,0.1614]
[1737645598779,3.09434,3231.7,3228.9,0.5]
[1737645599073,3.0959,3230.1,3229.2,3.09668]
[1737645599295,3.09595,3230.1,3229.2,3.09672]
[1737645599636,3.09597,3230.0,3229.2,3.09672]
[1737645599888,3.0959,3230.1,3229.3,3.09664]
[1737645600090,0.62949077,3230.5,3228.6,3.09731]
[1737645600268,3.09426,3231.8,3229.5,3.09637]
[1737645600451,3.09531,3230.7,3229.8,3.09615]
[1737645600669,3.09531,3230.7,3229.6,3.09635]
[1737645600889,3.09501,3231.0,3228.4,0.60757282]
[1737645601053,3.09501,3231.0,3228.9,3.09702]
[1737645601384,3.0951,3231.0,3229.5,0.1614]
[1737645601584,3.09607,3229.9,3229.5,0.1614]
[1737645601887,3.0951,3231.0,3229.5,0.1614]
[1737645601888,3.09624,3229.8,3229.5,0.1614]
[1737645602092,3.09674,3229.2,3228.5,0.1614]
[1737645602296,3.09607,3229.9,3229.0,3.09684]
[1737645602603,3.09607,3229.9,3228.1,3.4695407]
[1737645602604,0.9856,3231.6,3230.3,0.1614]
[1737645602754,0.9856,3232.1,3230.5,3.09548]
[1737645602957,3.0951,3231.0,3230.3,0.1614]
[1737645603176,3.09499,3231.1,3230.3,3.25701]
[1737645603377,3.09514,3230.9,3230.3,0.1614]
[1737645603590,3.09405,3232.0,3230.3,0.1614]
[1737645603791,0.9856,3232.1,3230.4,3.09559]
[1737645603955,3.09467,3231.4,3230.6,3.09538]
[1737645604156,3.09483,3231.2,3230.3,0.1614]
[1737645604490,3.09511,3231.0,3230.3,0.1614]
[1737645604998,3.09549,3230.5,3230.3,0.1614]
[1737645605157,3.0959,3230.1,3229.4,0.1614]
[1737645605352,3.09501,3231.0,3229.4,0.1614]
[1737645605594,4.42322795,3230.8,3229.4,0.1614]
[1737645605798,0.946,3231.1,3229.4,0.1614]
[1737645606002,3.0949,3231.2,3230.5,0.1614]
[1737645606211,0.15378392,3231.3,3230.5,0.1614]
[1737645606510,0.15378392,3231.3,3229.0,3.09687]
[1737645606511,3.09507,3231.0,3229.6,0.1614]
[1737645606694,3.0956,3230.4,3229.6,3.25773]
[1737645606892,0.60714141,3231.3,3229.9,3.09597]
[1737645606893,3.09519,3230.9,3229.9,3.09597]
[1737645607061,3.09519,3230.9,3230.0,3.09591]
[1737645607408,3.09514,3230.9,3230.5,0.1614]
[1737645607605,3.09523,3230.8,3230.5,0.1614]
[1737645607808,3.0954,3230.6,3230.5,0.1614]
[1737645608017,0.63321041,3231.6,3229.2,0.1614]
[1737645608018,3.09626,3229.7,3229.2,0.1614]
[1737645608219,3.096,3230.0,3229.2,0.1614]
[1737645608414,3.09599,3230.0,3229.2,0.1614]
[1737645608619,3.09501,3231.0,3229.2,0.1614]
[1737645608620,3.09607,3229.9,3229.2,0.1614]
[1737645608916,3.09664,3229.3,3229.2,0.1614]
[1737645609121,3.09633,3229.7,3229.2,0.1614]
[1737645609330,3.09598,3230.0,3229.2,0.1614]
[1737645609517,0.61760616,3230.6,3229.2,0.1614]
[1737645609518,3.09609,3229.9,3229.2,0.1614]
[1737645610022,3.09664,3229.3,3229.2,0.1614]
[1737645610374,3.09652,3229.5,3229.2,0.1614]
[1737645610591,3.09629,3229.7,3229.2,0.1614]
[1737645610795,3.0958,3230.2,3229.2,3.25807]
[1737645611020,3.09601,3230.0,3229.2,3.25807]
[1737645611236,3.09647,3229.5,3229.2,0.1614]
[1737645611400,3.09664,3229.3,3229.2,0.1614]
[1737645611727,3.09695,3229.0,3228.3,0.1614]
[1737645611930,3.09726,3228.7,3228.3,0.1614]
[1737645612242,3.0968,3229.2,3228.4,3.09742]
[1737645612530,3.09682,3229.2,3228.3,0.1614]
[1737645612691,3.09701,3229.0,3228.3,0.1614]
[1737645612891,3.09616,3229.8,3228.3,0.1614]
[1737645612892,3.09718,3228.8,3228.3,0.1614]
[1737645613087,3.09668,3229.3,3228.3,0.1614]
[1737645613333,3.09718,3228.8,3228.3,0.1614]
[1737645613718,3.0975,3228.4,3228.3,0.1614]
[1737645613925,3.09798,3227.9,3227.8,0.1614]
[1737645614221,3.09829,3227.6,3227.1,0.1614]
[1737645614532,3.24991269,3229.0,3227.1,0.1614]
[1737645614744,3.09904,3226.8,3226.5,0.1614]
[1737645614897,3.0992,3226.7,3226.5,0.1614]
[1737645615398,3.09911,3226.8,3226.5,0.1614]
[1737645615596,3.09907,3226.8,3226.5,0.1614]
[1737645615819,1.53576105,3227.8,3226.5,0.1614]
[1737645615820,3.09886,3227.0,3226.5,0.1614]
[1737645616634,3.09827,3227.6,3226.5,0.1614]
[1737645616858,3.09833,3227.6,3226.5,0.1614]
[1737645617130,3.09849,3227.4,3226.5,3.26065]
[1737645617347,3.09722,3228.7,3226.8,3.09904]
[1737645617348,3.09819,3227.7,3226.8,3.09904]
[1737645617509,0.61089618,3228.4,3226.9,0.1734]
[1737645617709,3.09768,3228.3,3227.3,3.09854]
[1737645617908,3.09797,3228.0,3227.0,3.09876]
[1737645618111,3.09797,3228.0,3226.9,0.1734]
[1737645618112,0.6071765,3228.5,3226.9,0.1734]
[1737645618315,3.09815,3227.8,3226.9,0.1734]
[1737645618538,3.0976,3228.3,3227.2,3.09857]
[1737645618699,0.9848,3229.0,3227.3,0.1734]
[1737645619034,3.09646,3229.5,3227.7,0.1734]
[1737645619035,3.09758,3228.4,3227.7,0.1734]
[1737645619389,3.09654,3229.5,3227.7,0.1734]
[1737645619390,0.41591539,3229.5,3227.7,0.1734]
[1737645619538,4.42322795,3229.6,3227.7,0.1734]
[1737645619539,3.09793,3228.0,3227.7,0.1734]
[1737645619699,0.6236671,3228.6,3227.7,0.1734]
[1737645619700,3.0974,3228.6,3227.7,0.1734]
[1737645619900,3.09751,3228.4,3227.7,0.1734]
[1737645620096,0.6236671,3229.2,3227.7,0.1734]
[1737645620525,3.09735,3228.6,3227.7,0.1734]
[1737645620843,0.6071145,3229.4,3228.1,3.09777]
[1737645621031,3.09693,3229.0,3228.0,0.1734]
[1737645621344,3.09681,3229.2,3228.2,3.09769]
[1737645621498,6.19232,3229.8,3228.0,0.1734]
[1737645621699,3.09692,3229.1,3228.0,0.1734]
[1737645622040,3.09692,3229.1,3227.6,3.09819]
[1737645622041,3.09812,3227.8,3226.9,0.1734]
[1737645622246,3.09853,3227.4,3226.9,0.1734]
[1737645622399,3.09885,3227.0,3226.9,0.1734]
[1737645622750,3.09933,3226.5,3226.4,0.339089]
[1737645622901,3.09933,3226.5,3226.4,0.165689]
[1737645624633,3.09925,3226.6,3226.5,0.1734]
[1737645624969,3.09925,3226.6,3226.4,0.165689]
[1737645624970,3.09923,3226.6,3226.4,0.165689]
[1737645625333,3.09922,3226.7,3226.4,0.165689]
[1737645625528,3.09899,3226.9,3226.4,0.165689]
[1737645625771,3.09873,3227.2,3226.4,0.165689]
[1737645626072,3.09877,3227.1,3226.4,0.165689]
[1737645626375,0.9359,3227.8,3226.5,0.1734]
[1737645626668,3.09827,3227.7,3226.5,0.0734]
[1737645626925,3.72758627,3227.8,3226.6,3.09921]
[1737645627095,0.62943627,3227.8,3226.5,0.0734]
[1737645627250,3.09866,3227.2,3226.5,0.0734]
[1737645627632,3.09878,3227.1,3226.5,0.0734]
[1737645627836,3.09889,3227.0,3226.4,0.165689]
[1737645628033,3.09819,3227.7,3226.4,0.165689]
[1737645628336,3.09836,3227.6,3226.4,3.265109]
[1737645628678,3.0981,3227.8,3226.7,3.09913]
[1737645628850,3.0981,3227.8,3226.4,0.165689]
[1737645628851,3.09861,3227.3,3226.4,0.165689]
[1737645629054,3.09806,3227.9,3226.4,0.165689]
[1737645629413,3.09933,3226.5,3226.4,0.165689]
[1737645630704,3.09894,3226.9,3226.4,0.165689]
[1737645630875,3.09887,3227.0,3226.4,0.165689]
[1737645631202,3.09873,3227.2,3226.5,0.0734]
[1737645631406,3.72101648,3227.8,3226.5,0.0734]
[1737645631574,3.09838,3227.5,3226.7,3.09906]
[1737645631779,3.09768,3228.3,3227.2,0.0734]
[1737645632111,3.0969,3229.1,3227.5,0.0734]
[1737645632254,3.09681,3229.2,3228.4,3.09749]
[1737645632459,0.9331,3230.9,3228.7,0.0734]
[1737645632899,0.9331,3230.9,3229.9,3.09598]
[1737645633102,3.09509,3231.0,3229.8,0.0734]
[1737645633103,3.09522,3230.8,3229.8,0.0734]
[1737645633410,1.71673256,3231.5,3230.0,0.0575549]
[1737645633714,3.09413,3232.0,3231.1,3.09489]
[1737645633917,3.09395,3232.2,3231.1,3.09483]
[1737645634121,0.9331,3233.4,3231.9,0.0734]
[1737645634321,0.6227625,3233.2,3232.4,3.09366]
[1737645634458,0.6227625,3233.2,3231.6,3.0]
[1737645634459,3.09224,3233.9,3232.9,0.0734]
[1737645634655,0.31857181,3234.0,3233.3,3.09278]
[1737645634861,0.60633486,3235.2,3233.1,6.186]
[1737645635093,0.60633486,3235.2,3233.0,0.60461544]
[1737645635273,0.81324445,3235.5,3234.1,3.092]
[1737645635460,0.81324445,3235.5,3233.6,0.61110817]
[1737645635684,0.9783,3235.7,3233.6,0.55]
[1737645636067,3.09081,3235.4,3234.3,3.0918]
[1737645636324,0.9052,3236.2,3233.7,0.05154878]
[1737645636475,3.09033,3235.9,3234.4,0.05145041]
[1737645636827,0.9052,3236.2,3234.1,0.0734]
[1737645637115,0.979,3236.8,3235.4,3.09077]
[1737645637321,0.61798918,3236.8,3235.5,0.0734]
[1737645637471,3.08883,3237.5,3236.3,3.08993]
[1737645637801,3.08793,3238.5,3235.5,0.0734]
[1737645637802,3.08895,3237.4,3236.2,3.09003]
[1737645638000,1.235991,3238.2,3236.4,0.04925979]
[1737645638185,3.08775,3238.6,3236.3,3.21254923]
[1737645638382,3.08864,3237.7,3236.5,0.04915798]
[1737645638566,2.16593,3238.7,3236.3,0.0734]
[1737645638567,3.08801,3238.4,3236.4,0.0490986]
[1737645638787,2.16593,3238.7,3236.3,0.0734]
[1737645638788,0.9301,3238.7,3236.8,3.08945]
[1737645638962,3.08775,3238.6,3236.5,0.04860357]
[1737645639169,0.9301,3238.7,3236.9,0.04856095]
[1737645639485,0.9301,3238.7,3237.0,3.08924]
[1737645639689,3.08824,3238.1,3237.0,0.04769181]
[1737645640018,0.165689,3239.4,3236.9,6.17874]
[1737645640167,0.6167951,3239.3,3237.1,0.04757241]
[1737645640364,0.165689,3239.4,3237.6,0.5]
[1737645640615,0.165689,3239.4,3237.2,3.08903]
[1737645640616,0.165689,3239.4,3239.2,3.08714]
[1737645640908,0.165689,3239.4,3239.1,3.08725]
[1737645641110,0.165689,3239.4,3239.3,0.04712135]
[1737645641312,0.165689,3239.4,3239.2,3.20768596]
[1737645641610,0.165689,3239.4,3239.3,0.94746655]
[1737645641996,0.165689,3239.4,3239.3,0.04746655]
[1737645642447,0.165689,3239.4,3238.5,0.0734]
[1737645642746,0.165689,3239.4,3238.7,3.08761]
[1737645642953,0.165689,3239.4,3238.6,0.04651511]
[1737645643101,0.165689,3239.4,3238.8,0.04648133]
[1737645643297,0.165689,3239.4,3238.5,0.0734]
[1737645643526,0.165689,3239.4,3239.0,3.08736]
[1737645643753,0.165689,3239.4,3238.5,0.0734]
[1737645643902,0.165689,3239.4,3239.1,0.04639416]
[1737645644099,0.165689,3239.4,3239.2,3.08716]
[1737645644415,4.156688,3240.2,3239.2,0.04642065]
[1737645644758,1.070418,3240.2,3239.3,3.08706]
[1737645644938,1.070418,3240.2,3239.5,3.0868]
[1737645645104,1.070418,3240.2,3239.8,3.08658]
[1737645645307,1.5959596,3240.4,3240.1,3.08632]
[1737645645654,1.5959596,3240.4,3240.3,3.08613]
[1737645645655,9.6e-06,3240.4,3240.3,3.08613]
[1737645645858,9.6e-06,3240.4,3240.2,0.04463228]
[1737645646167,9.6e-06,3240.4,3240.3,3.08613]
[1737645646366,9.6e-06,3240.4,3239.9,0.5]
[1737645646569,1.45871202,3240.8,3240.7,6.08575]
[1737645646708,1.5959596,3241.2,3241.1,0.5]
[1737645647047,1.5959596,3241.4,3241.3,6.08518]
[1737645647229,1.5959596,3241.8,3241.5,6.63499]
[1737645647412,1.5959596,3241.8,3241.7,3.0848]
[1737645647610,1.5959596,3241.8,3241.7,6.6348]
[1737645647833,1.5959596,3241.8,3241.7,3.04266931]
[1737645648140,1.5959596,3241.8,3241.7,6.12746931]
[1737645648342,1.5959596,3242.9,3242.1,0.5]
[1737645648559,1.5959596,3242.9,3242.6,6.63394]
[1737645649050,0.1629688,3243.5,3243.0,0.5]
[1737645649361,0.1629688,3243.5,3243.4,6.33318]
[1737645649654,0.1629688,3243.5,3243.1,0.03939856]
[1737645649816,0.1629688,3243.5,3243.4,0.03660218]
[1737645650023,1.57771858,3243.7,3243.6,6.08299]
[1737645650254,1.57771858,3243.7,3243.6,3.0]
[1737645650438,1.57771858,3243.7,3243.6,3.03585327]
[1737645650620,1.57621858,3243.7,3243.6,0.03585327]
[1737645650819,1.57621858,3243.7,3242.6,3.08388]
[1737645651027,1.57621858,3243.7,3242.0,3.33449]
[1737645651028,1.54441858,3243.7,3242.0,3.33449]
[1737645651248,1.51257769,3243.7,3242.7,0.03600915]
[1737645651445,1.51257769,3243.7,3241.8,0.25]
[1737645651758,1.51257769,3243.7,3241.9,0.03621435]
[1737645651904,1.51257769,3243.7,3241.9,0.28621435]
[1737645652109,1.51257769,3243.7,3241.9,0.03621435]
[1737645652351,3.08299,3243.6,3241.4,1.37623286]
[1737645652555,1.51257769,3243.7,3242.5,3.08397]
[1737645652754,1.51257769,3243.7,3242.4,6.08408]
[1737645653052,1.51257769,3243.7,3242.6,0.03598053]
[1737645653252,3.08385,3242.7,3242.5,0.03592463]
[1737645653558,3.08365,3242.9,3240.1,3.08627]
[1737645653708,3.08365,3242.9,3239.4,2.724]
[1737645653709,3.08441,3242.2,3239.9,3.08648]
[1737645653909,3.08556,3240.9,3239.6,3.08673]
[1737645654138,0.8102,3241.5,3239.6,3.08679]
[1737645654493,0.8102,3241.5,3239.3,3.58708]
[1737645654661,0.25,3243.1,3239.3,0.75]
[1737645654662,0.8102,3242.1,3239.3,0.75]
[1737645654957,0.8102,3242.1,3239.9,3.08649]
[1737645654958,3.08527,3241.3,3239.9,3.08649]
[1737645655117,0.8102,3242.1,3239.3,0.62974652]
[1737645655314,3.08578,3240.7,3240.0,0.03534109]
[1737645655576,0.61988361,3242.3,3238.9,0.62802051]
[1737645655728,3.08473,3241.8,3239.0,3.08737]
[1737645655926,3.08658,3239.9,3239.0,0.03548708]
[1737645656246,0.7944,3240.5,3237.9,0.62993145]
[1737645656427,0.7944,3240.5,3237.7,0.5]
[1737645656628,3.08603,3240.4,3238.8,3.08755]
[1737645656834,6.95656709,3240.5,3238.0,0.03218826]
[1737645657057,3.08737,3239.0,3237.4,3.69459569]
[1737645657375,3.08737,3239.0,3236.9,3.08936]
[1737645657376,1.40207827,3240.5,3238.4,3.08785]
[1737645657574,3.08711,3239.3,3237.8,3.08846]
[1737645657757,0.7944,3240.5,3238.5,0.02985555]
[1737645657920,3.0869,3239.5,3237.4,0.62999309]
[1737645658125,3.08728,3239.1,3238.6,0.02759351]
[1737645658321,3.087,3239.4,3237.9,3.08842]
[1737645658567,5.55448882,3239.9,3238.7,0.02748091]
[1737645658776,5.55448882,3239.9,3236.2,10.87]
[1737645658777,3.08809,3238.3,3236.9,3.08935]
[1737645659076,0.844,3239.1,3236.6,3.08962]
[1737645659226,3.08852,3237.8,3237.0,0.02979176]
[1737645659426,3.08918,3237.1,3237.0,0.02979176]
[1737645659626,3.08763,3238.8,3235.5,1.235357]
[1737645659879,3.08798,3238.4,3236.2,0.5]
[1737645660075,3.08821,3238.2,3236.9,3.0]
[1737645660235,3.08798,3238.4,3237.2,3.0]
[1737645660589,0.61603809,3239.4,3237.3,0.02819962]
[1737645660907,3.0,3239.5,3237.3,0.02819962]
[1737645661074,3.08691,3239.5,3238.2,3.0]
[1737645661274,0.25,3240.4,3239.0,0.55]
[1737645661275,0.8631,3240.4,3239.0,0.55]
[1737645661486,3.08618,3240.3,3239.0,0.55]
[1737645661686,3.08618,3240.3,3238.8,0.5457]
[1737645661687,3.0,3240.6,3238.8,0.5457]
[1737645661980,6.17168,3240.6,3238.8,0.5457]
[1737645662132,3.08614,3240.3,3238.9,0.55]
[1737645662335,3.08527,3241.2,3239.0,3.08728]
[1737645662645,3.0,3240.9,3239.1,0.55]
[1737645662831,0.63215214,3241.1,3239.2,0.02778266]
[1737645663028,0.63215214,3241.1,3238.8,0.5457]
[1737645663029,5.05652944,3241.3,3238.8,6.63321]
[1737645663342,5.05652944,3240.6,3238.9,0.02793618]
[1737645663672,3.08737,3239.0,3238.9,0.02793618]
[1737645663978,3.08737,3239.0,3238.3,0.5457]
[1737645663979,3.0,3240.2,3238.3,0.5457]
[1737645664131,0.61918681,3240.6,3237.6,0.5457]
[1737645664334,3.087,3239.4,3238.4,0.03017001]
[1737645664547,0.8575,3240.3,3238.4,3.11811001]
[1737645664796,3.0869,3239.5,3238.4,0.03017001]
[1737645665098,3.087,3239.4,3238.4,0.03017001]
[1737645665293,0.8575,3240.3,3237.6,0.5457]
[1737645665595,3.08614,3240.3,3238.5,0.03017602]
[1737645665794,0.8575,3240.9,3238.5,3.63776]
[1737645665996,3.08615,3240.3,3239.4,0.5457]
[1737645666218,0.8575,3240.9,3239.4,0.5457]